fUSD/lending_fUSD_20260313
["ID","MTS","AMOUNT","RATE_DAILY","PERIOD"]
[408314862,1773401431574,-500.0,0.00019138,2]
[408314863,1773401431583,-485.32992184,0.00019138,2]
[408314864,1773401431592,-156.65640271,0.00019138,2]
[408314865,1773401431602,-500.0,0.00019138,2]
[408314866,1773401431611,-500.0,0.00019138,2]
[408314867,1773401431621,-500.0,0.00019138,2]
[408314868,1773401431630,-500.0,0.00019138,2]
[408314869,1773401431639,-500.0,0.00019138,2]
[408314870,1773401431649,-500.0,0.00019138,2]
[408314871,1773401431658,-500.0,0.00019138,2]
[408314872,1773401431667,-500.0,0.00019138,2]
[408314873,1773401431676,-500.0,0.00019138,2]
[408314874,1773401431686,-500.0,0.00019138,2]
[408314875,1773401431695,-500.0,0.00019138,2]
[408314876,1773401431704,-500.0,0.00019138,2]
[408314877,1773401431714,-500.0,0.00019138,2]
[408314878,1773401431724,-500.0,0.00019138,2]
[408314879,1773401431733,-500.0,0.00019138,2]
[408314880,1773401431743,-500.0,0.00019138,2]
[408314881,1773401431752,-500.0,0.00019138,2]
[408314882,1773401431762,-500.0,0.00019138,2]
[408314883,1773401431771,-500.0,0.00019138,2]
[408314884,1773401431780,-500.0,0.00019138,2]
[408314885,1773401431790,-500.0,0.00019138,2]
[408314886,1773401431799,-500.0,0.00019138,2]
[408314887,1773401431808,-500.0,0.00019138,2]
[408314888,1773401431817,-500.0,0.00019138,2]
[408314889,1773401431826,-500.0,0.00019138,2]
[408314890,1773401431836,-500.0,0.00019138,2]
[408314891,1773401431845,-500.0,0.00019138,2]
[408314892,1773401431854,-500.0,0.00019138,2]
[408314893,1773401431864,-500.0,0.00019138,2]
[408314894,1773401431873,-500.0,0.00019138,2]
[408314895,1773401431885,-500.0,0.00019138,2]
[408314896,1773401431894,-500.0,0.00019138,2]
[408314897,1773401431905,-500.0,0.00019138,2]
[408314898,1773401431917,-500.0,0.00019138,2]
[408314899,1773401431927,-500.0,0.00019138,2]
[408314900,1773401431936,-500.0,0.00019138,2]
[408314901,1773401431946,-500.0,0.00019138,2]
[408314902,1773401431956,-500.0,0.00019138,2]
[408314903,1773401431965,-500.0,0.00019138,2]
[408314904,1773401431974,-260.49398209,0.00019138,2]
[408314905,1773401431986,-71077.55221077,0.00019139,2]
[408314906,1773401431999,-295.0908251,0.00019139,2]
[408314907,1773401432010,-835.60817854,0.00019139,2]
[408314908,1773401432024,-456.50541151,0.00019139,2]
[408314909,1773401432035,-922.63669896,0.00019139,2]
[408314910,1773401432200,-66590.58728967,0.00019139,2]
[408314911,1773401432210,-1739.93898666,0.00019139,2]
[408314912,1773401432222,-2351.54804654,0.00019139,2]
[408314913,1773401432233,-346.84803172,0.00019139,2]
[408314914,1773401432245,-1000.0,0.00019139,2]
[408314915,1773401432255,-501.0,0.00019139,2]
[408314916,1773401432267,-350.5114919,0.00019139,2]
[408314917,1773401437622,-116022.65462432,0.00019139,2]
[408314919,1773401437783,-2206.24593183,0.00019139,2]
[408314920,1773401437796,-1201.38513518,0.00019139,2]
[408314921,1773401437808,-1595.49024209,0.00019139,2]
[408314922,1773401437820,-302.92287827,0.00019139,2]
[408314923,1773401437944,-1439.48497903,0.00019139,2]
[408314924,1773401438003,-30527.55492681,0.00019139,2]
[408314925,1773401438013,-500.0,0.00019173,2]
[408314926,1773401438023,-500.0,0.00019238,2]
[408314927,1773401438032,-500.0,0.00019238,2]
[408314928,1773401438042,-220.77515492,0.00019238,2]
[408314929,1773401438057,-252.31625382,0.00019238,2]
[408314931,1773401438066,-1276.76,0.00019266,2]
[408314933,1773401438076,-500.0,0.00019273,2]
[408314935,1773401438085,-330.27342068,0.00019273,2]
[408314937,1773401438095,-550.0891429,0.00019273,2]
[408314939,1773401438104,-500.0,0.00019273,2]
[408314941,1773401438113,-500.0,0.00019273,2]
[408314943,1773401438123,-500.0,0.00019273,2]
[408314945,1773401438132,-166.67,0.00019595,2]
[408314947,1773401438142,-521.58025199,0.000196,2]
[408314949,1773401438151,-442.12259034,0.000196,2]
[408314951,1773401438160,-1000.0,0.00019721,2]
[408314953,1773401438170,-250.0,0.00019726,2]
[408314955,1773401438179,-1276.76,0.00019736,2]
[408314957,1773401438188,-1304.0,0.00019753,2]
[408314958,1773401438198,-430.114,0.0001979,2]
[408314961,1773401438208,-1343.0,0.0001979,2]
[408314963,1773401438217,-293.49346,0.000198,2]
[408314965,1773401438227,-293.49346,0.000198,2]
[408314966,1773401438236,-1365.407,0.00019811,2]
[408314968,1773401438246,-1000.0,0.00019821,2]
[408314969,1773401438255,-1000.0,0.00019821,2]
[408314970,1773401438264,-637.38342981,0.00019821,2]
[408314971,1773401438274,-589.17,0.00019841,2]
[408314972,1773401438283,-169.05569249,0.000199,2]
[408314973,1773401438293,-222.52962526,0.000199,3]
[408314974,1773401438303,-221.8128178,0.000199,2]
[408314975,1773401438312,-196.25165977,0.00019973,2]
[408314976,1773401438321,-501.74189694,0.00019973,2]
[408314977,1773401438331,-621.0,0.00019973,2]
[408314978,1773401438341,-500.0,0.00019973,2]
[408314979,1773401438350,-500.0,0.00019973,2]
[408314980,1773401438360,-151.86783288,0.0001999,2]
[408314981,1773401438369,-151.86783288,0.0001999,2]
[408314982,1773401438379,-151.0,0.00019997,2]
[408314983,1773401438388,-2425.0,0.0002,2]
[408314984,1773401438398,-1930.0,0.0002,2]
[408314985,1773401438408,-10213.21015269,0.0002,2]
[408314987,1773401439842,-3333045.52600313,0.0002,2]
[408314989,1773401439854,-10011.22949497,0.0002,2]
[408314992,1773401439904,-142950.708381,0.0002,2]
[408314993,1773401439917,-570.54789703,0.0002,2]
[408314994,1773401439930,-1558.81911971,0.0002,2]
[408314995,1773401439941,-88020.51562171,0.0002,2]
[408314996,1773401439954,-1917.95021935,0.0002,2]
[408314997,1773401439966,-5523.86793438,0.0002,2]
[408314998,1773401439978,-1851.78918685,0.0002,2]
[408314999,1773401440228,-789.47421459,0.0002,2]
[408315000,1773401440241,-448.13622011,0.0002,2]
[408315001,1773401440253,-281.649,0.0002,2]
[408315002,1773401440264,-3216.34773494,0.0002,2]
[408315024,1773401445043,-2463.0,0.0001979,2]
[408315025,1773401445053,-37575.67097982,0.0002,2]
[408315026,1773401445309,-1648807.12844616,0.0002,2]
[408315027,1773401445324,-36194.0001916,0.0002,2]
[408315028,1773401445337,-5803.27149035,0.0002,2]
[408315029,1773401445361,-14777.44527727,0.0002,2]
[408315031,1773401445522,-2919.41964065,0.0002,2]
[408315032,1773401445790,-18208.42119137,0.0002,2]
[408315033,1773401445802,-398.14391244,0.0002,2]
[408315037,1773401498462,4007.76,0.00032877,120]
[408315038,1773401543517,1000.0,0.00032877,120]
[408315040,1773401732320,-150.0,0.00018796,2]
[408315041,1773401732343,-300.0,0.00018796,2]
[408315042,1773401732372,-1200.0,0.00018796,2]
[408315043,1773401732395,-300.0,0.00018796,2]
[408315044,1773401732420,-114189.187,0.00018797,2]
[408315045,1773401732446,-44084.9931,0.00019039,2]
[408315046,1773401732474,-339775.8199,0.00019039,2]
[408315049,1773401974093,307138.60283992,0.0003286,120]
[408315070,1773402631680,-166.64,0.00016712,2]
[408315072,1773402631691,-151.0,0.00017284,5]
[408315074,1773402631701,-404.86,0.00017791,2]
[408315076,1773402631713,-558.7944409,0.00017791,2]
[408315077,1773402631722,-166.66,0.00018122,2]
[408315078,1773402631732,-154.23990842,0.00018284,5]
[408315079,1773402631741,-2500.0,0.00018384,2]
[408315080,1773402631749,-275.76954708,0.00018384,2]
[408315081,1773402631759,-315.76967296,0.00018384,2]
[408315082,1773402631768,-166.66,0.00018503,2]
[408315083,1773402631777,-163.18,0.00018817,2]
[408315084,1773402631787,-3240.0,0.00018817,2]
[408315085,1773402631796,-166.66,0.00018885,2]
[408315086,1773402631805,-160.0,0.00018885,2]
[408315087,1773402631814,-622.3423,0.00018939,2]
[408315088,1773402631823,-198.53,0.00018945,2]
[408315089,1773402631832,-900.69,0.0001897,2]
[408315090,1773402631842,-941.07,0.00019013,2]
[408315091,1773402631851,-151.0,0.00019028,2]
[408315092,1773402631860,-151.0,0.00019028,2]
[408315093,1773402631869,-151.0,0.00019028,2]
[408315094,1773402631878,-151.0,0.00019028,2]
[408315095,1773402631887,-151.0,0.00019028,2]
[408315096,1773402631896,-151.0,0.00019028,2]
[408315097,1773402631905,-151.0,0.00019028,2]
[408315098,1773402631914,-151.0,0.00019028,2]
[408315099,1773402631924,-151.0,0.00019028,2]
[408315100,1773402631933,-151.0,0.00019028,2]
[408315101,1773402631943,-151.0,0.00019028,2]
[408315102,1773402631953,-151.0,0.00019028,2]
[408315103,1773402631962,-151.0,0.00019028,2]
[408315104,1773402631971,-151.0,0.00019028,2]
[408315106,1773402631980,-151.0,0.00019028,2]
[408315108,1773402631989,-151.0,0.00019028,2]
[408315110,1773402631998,-151.0,0.00019028,2]
[408315112,1773402632008,-151.0,0.00019028,2]
[408315114,1773402632016,-151.0,0.00019028,2]
[408315116,1773402632026,-278.54774132,0.00019028,2]
[408315119,1773402632035,-1002.24584653,0.00019038,2]
[408315120,1773402632044,-55341.1918,0.00019039,2]
[408315121,1773402632053,-49557.33974408,0.000191,2]
[408315122,1773402632062,-500.0,0.00019138,2]
[408315123,1773402632072,-500.0,0.00019138,2]
[408315124,1773402632081,-500.0,0.00019138,2]
[408315125,1773402632091,-539.6122178,0.00019138,2]
[408315126,1773402632100,-500.0,0.00019138,2]
[408315127,1773402632109,-500.0,0.00019138,2]
[408315128,1773402632119,-461.75311028,0.00019238,2]
[408315129,1773402632127,-166.66,0.00019266,2]
[408315130,1773402632136,-168.0,0.00019583,2]
[408315131,1773402632145,-166.66,0.00019648,2]
[408315132,1773402632154,-2077.78716955,0.00019729,2]
[408315133,1773402632165,-302.47383593,0.00019729,2]
[408315134,1773402632174,-438.88663,0.000198,2]
[408315135,1773402632183,-438.88663,0.000198,2]
[408315136,1773402632192,-1693.203,0.00019814,2]
[408315137,1773402632202,-180.353,0.00019814,2]
[408315138,1773402632211,-1000.0,0.00019841,2]
[408315139,1773402632219,-1000.0,0.00019841,2]
[408315140,1773402632228,-1000.0,0.00019841,2]
[408315141,1773402632240,-1000.0,0.00019841,2]
[408315142,1773402632249,-1000.0,0.00019841,2]
[408315143,1773402632258,-1000.0,0.00019841,2]
[408315144,1773402632267,-1000.0,0.00019841,2]
[408315145,1773402632275,-1000.0,0.00019841,2]
[408315146,1773402632284,-1000.0,0.00019841,2]
[408315147,1773402632294,-1000.0,0.00019841,2]
[408315148,1773402632304,-1000.0,0.00019841,2]
[408315149,1773402632313,-683.012,0.00019841,2]
[408315150,1773402632322,-163.66963598,0.00019873,2]
[408315151,1773402632334,-350.90634003,0.000199,2]
[408315152,1773402632343,-4850.4,0.000199,2]
[408315153,1773402632352,-2117.7126177,0.000199,2]
[408315154,1773402632362,-351.09049752,0.000199,2]
[408315155,1773402632371,-12424.21541788,0.00019911,2]
[408315156,1773402632381,-2393.0,0.00019973,2]
[408315157,1773402632390,-3692.0,0.00019973,2]
[408315158,1773402632399,-500.0,0.00019973,2]
[408315159,1773402632410,-500.0,0.00019973,2]
[408315160,1773402632418,-500.0,0.00019973,2]
[408315161,1773402632429,-500.0,0.00019973,2]
[408315162,1773402632445,-500.0,0.00019973,2]
[408315163,1773402632459,-306.71527915,0.0001999,2]
[408315164,1773402632469,-163.18,0.00019993,2]
[408315165,1773402632478,-151.0,0.00019997,2]
[408315166,1773402632487,-500.0,0.00019999,2]
[408315167,1773402632496,-500.0,0.00019999,2]
[408315168,1773402632506,-500.0,0.00019999,2]
[408315169,1773402632516,-580.45239299,0.00019999,2]
[408315170,1773402632525,-243.57276615,0.00019999,2]
[408315171,1773402632534,-205.83174209,0.00019999,2]
[408315172,1773402632544,-253.40792585,0.00019999,2]
[408315173,1773402632553,-500.0,0.00019999,2]
[408315174,1773402632563,-500.0,0.00019999,2]
[408315175,1773402632572,-338.32650733,0.00019999,2]
[408315176,1773402632583,-500.0,0.00019999,2]
[408315177,1773402632592,-500.0,0.00019999,2]
[408315178,1773402632602,-500.0,0.00019999,2]
[408315179,1773402632612,-500.0,0.00019999,2]
[408315180,1773402632621,-500.0,0.00019999,2]
[408315181,1773402632630,-500.0,0.00019999,2]
[408315182,1773402632640,-500.0,0.00019999,2]
[408315183,1773402632649,-500.0,0.00019999,2]
[408315184,1773402632658,-500.0,0.00019999,2]
[408315185,1773402632668,-500.0,0.00019999,2]
[408315186,1773402632677,-500.0,0.00019999,2]
[408315187,1773402632686,-500.0,0.00019999,2]
[408315188,1773402632696,-500.0,0.00019999,2]
[408315189,1773402632705,-211.8108111,0.00019999,2]
[408315190,1773402632714,-500.0,0.00019999,2]
[408315191,1773402632723,-500.0,0.00019999,2]
[408315192,1773402632732,-500.0,0.00019999,2]
[408315193,1773402632742,-500.0,0.00019999,2]
[408315194,1773402632752,-500.0,0.00019999,2]
[408315195,1773402632761,-500.0,0.00019999,2]
[408315196,1773402632769,-500.0,0.00019999,2]
[408315197,1773402632778,-500.0,0.00019999,2]
[408315198,1773402632787,-1550.0,0.0002,2]
[408315199,1773402632797,-2285.0,0.0002,2]
[408315200,1773402632806,-92863.9037767,0.0002,2]
[408315201,1773402632817,-102922.01730198,0.0002,2]
[408315202,1773402632828,-279.79428379,0.0002,2]
[408315203,1773402632843,-2935.86868876,0.0002,2]
[408315204,1773402637731,-1064.40417485,0.00019038,2]
[408315205,1773402637784,-387.75502244,0.00019038,2]
[408315206,1773402637796,-1092.55850266,0.00019038,2]
[408315207,1773402637806,-87202.37261357,0.0002,2]
[408315208,1773402637817,-2395.49482172,0.0002,2]
[408315209,1773402637838,-703.57280324,0.0002,2]
[408315210,1773402637849,-1154.38291172,0.0002,2]
[408315211,1773402637892,-134640.75863602,0.0002,2]
[408315212,1773402637903,-1894.81163264,0.0002,2]
[408315213,1773402637914,-69969.17056098,0.0002,2]
[408315224,1773402640289,-2314.93306344,0.000199,2]
[408315225,1773402640300,-959518.67999326,0.0002,2]
[408315226,1773402640309,-600959.11537492,0.0002,2]
[408315227,1773402640319,-200.0,0.0002,2]
[408315228,1773402640328,-200.0,0.0002,2]
[408315229,1773402640342,-188.0,0.0002,2]
[408315230,1773402640351,-432110.23307598,0.0002,2]
[408315231,1773402640361,-312154.7414045,0.0002,2]
[408315232,1773402640371,-150.0,0.0002,2]
[408315233,1773402640381,-27545.9880659,0.0002,2]
[408315234,1773402640390,-281.73,0.0002,7]
[408315235,1773402640399,-152.32156984,0.0002,2]
[408315236,1773402640409,-153.435431,0.0002,2]
[408315237,1773402640418,-173.531226,0.0002,2]
[408315238,1773402640428,-1043.0,0.0002,2]
[408315239,1773402640437,-154.054367,0.0002,2]
[408315240,1773402640447,-620.0,0.0002,2]
[408315241,1773402640457,-563.0,0.0002,2]
[408315242,1773402640466,-151.0,0.0002,2]
[408315243,1773402640475,-151.0,0.0002,2]
[408315244,1773402640484,-438.88663,0.0002,2]
[408315245,1773402640494,-438.88664,0.0002,2]
[408315246,1773402640504,-438.88664,0.0002,2]
[408315247,1773402640513,-438.88663,0.0002,2]
[408315248,1773402640523,-151.0,0.0002,2]
[408315249,1773402640534,-287.915266,0.0002,2]
[408315250,1773402640543,-151.0,0.0002,2]
[408315251,1773402640553,-218.520327,0.0002,2]
[408315252,1773402640562,-218.520327,0.0002,2]
[408315253,1773402640571,-218.520327,0.0002,2]
[408315254,1773402640582,-218.520327,0.0002,2]
[408315255,1773402640592,-151.0,0.0002,2]
[408315256,1773402640602,-288.673177,0.0002,2]
[408315257,1773402640611,-288.673177,0.0002,2]
[408315258,1773402640622,-288.673177,0.0002,2]
[408315259,1773402640631,-288.673177,0.0002,2]
[408315260,1773402640640,-995.0,0.0002,2]
[408315261,1773402640651,-703.57278709,0.0002,2]
[408315262,1773402640660,-151.0,0.0002,2]
[408315263,1773402640669,-3753.0,0.0002,2]
[408315264,1773402640679,-2463.0,0.0002,2]
[408315265,1773402640688,-151.0,0.0002,2]
[408315266,1773402640698,-151.0,0.0002,2]
[408315267,1773402640707,-157.12454959,0.0002,2]
[408315268,1773402640716,-4160.92,0.0002,2]
[408315269,1773402640725,-8720.0,0.0002001,2]
[408315270,1773402640734,-166.66,0.00020029,2]
[408315271,1773402640743,-286.77616675,0.00020105,30]
[408315272,1773402640752,-336.0,0.00020142,2]
[408315273,1773402640762,-168.0,0.00020172,2]
[408315274,1773402640771,-1276.76,0.00020206,2]
[408315275,1773402640780,-168.0,0.00020223,2]
[408315276,1773402640789,-168.0,0.00020253,2]
[408315277,1773402640798,-168.0,0.00020333,2]
[408315278,1773402640807,-851.0,0.00020371,2]
[408315279,1773402640816,-168.0,0.00020373,2]
[408315280,1773402640826,-168.0,0.0002041,2]
[408315281,1773402640836,-168.0,0.00020481,2]
[408315282,1773402640845,-168.0,0.0002049,2]
[408315283,1773402640855,-168.0,0.00020503,2]
[408315284,1773402640865,-1000.0,0.00020521,2]
[408315285,1773402640874,-1000.0,0.00020521,2]
[408315286,1773402640884,-21644.96,0.00020548,2]
[408315287,1773402640893,-168.0,0.00020595,2]
[408315288,1773402640903,-168.0,0.00020636,2]
[408315289,1773402640912,-168.0,0.00020654,2]
[408315290,1773402640922,-166.67,0.00020673,2]
[408315291,1773402640931,-1276.76,0.00020676,2]
[408315292,1773402640940,-168.0,0.00020682,2]
[408315293,1773402640950,-700.0,0.00020684,2]
[408315294,1773402640959,-22779.14758661,0.000207,2]
[408315295,1773402640969,-843.6,0.00020732,2]
[408315296,1773402640978,-168.0,0.00020772,2]
[408315297,1773402640987,-196.0,0.00020776,2]
[408315298,1773402640997,-589.17,0.00020786,2]
[408315299,1773402641006,-168.0,0.00020807,2]
[408315300,1773402641016,-168.0,0.00020845,2]
[408315301,1773402641025,-196.0,0.00020928,2]
[408315302,1773402641035,-20000.0,0.00021,2]
[408315303,1773402641044,-196.0,0.00021042,2]
[408315304,1773402641054,-12589.92,0.00021068,2]
[408315305,1773402641063,-1500.0,0.00021068,2]
[408315306,1773402641072,-1504.90829082,0.00021068,2]
[408315307,1773402641082,-168.0,0.00021126,2]
[408315308,1773402641091,-163.18,0.00021169,2]
[408315309,1773402641101,-336.0,0.00021177,2]
[408315310,1773402641116,-2000.0,0.00021259,2]
[408315311,1773402641125,-6417.92,0.0002137,2]
[408315312,1773402641134,-166.66,0.00021394,2]
[408315313,1773402641143,-57868.55519365,0.000215,2]
[408315314,1773402641153,-507.73,0.00021595,2]
[408315315,1773402641163,-151.11556502,0.00021616,2]
[408315316,1773402641173,-589.17,0.00021731,2]
[408315317,1773402641189,-166.67,0.00021751,2]
[408315318,1773402641199,-407.10787431,0.00021871,2]
[408315319,1773402641208,-3000.0,0.00021917,2]
[408315320,1773402641219,-3000.0,0.00021917,2]
[408315321,1773402641228,-3000.0,0.00021917,2]
[408315322,1773402641237,-3000.0,0.00021917,2]
[408315323,1773402641246,-3000.0,0.00021917,2]
[408315324,1773402641256,-3000.0,0.00021917,2]
[408315325,1773402641266,-3000.0,0.00021917,2]
[408315326,1773402641275,-3000.0,0.00021917,2]
[408315327,1773402641293,-3000.0,0.00021917,2]
[408315328,1773402641315,-3000.0,0.00021917,2]
[408315329,1773402641327,-3000.0,0.00021917,2]
[408315330,1773402641342,-3000.0,0.00021917,2]
[408315331,1773402641352,-3000.0,0.00021917,2]
[408315332,1773402641361,-5000.0,0.00021918,2]
[408315333,1773402641371,-3051.36,0.00021918,2]
[408315334,1773402641381,-161.52,0.00021918,2]
[408315335,1773402641391,-150.40625311,0.00021918,2]
[408315336,1773402641403,-155.0,0.00021999,2]
[408315337,1773402641412,-155.0,0.00021999,2]
[408315338,1773402641421,-214.7,0.00022322,2]
[408315339,1773402641430,-214.7,0.00022322,2]
[408315340,1773402641440,-214.7,0.00022322,2]
[408315341,1773402641450,-214.7,0.00022322,2]
[408315342,1773402641459,-214.7,0.00022322,2]
[408315343,1773402641469,-214.7,0.00022322,2]
[408315344,1773402641478,-214.7,0.00022322,2]
[408315345,1773402641487,-214.7,0.00022322,2]
[408315346,1773402641496,-163.18,0.00022345,2]
[408315347,1773402641507,-35716.20549153,0.000225,2]
[408315348,1773402641516,-3626.77881756,0.000226,2]
[408315349,1773402641526,-589.17,0.00022676,2]
[408315350,1773402641535,-166.67,0.00022829,2]
[408315351,1773402641545,-500.0,0.00022973,2]
[408315352,1773402641554,-500.0,0.00022973,2]
[408315353,1773402641564,-306.71527915,0.0002299,2]
[408315354,1773402641574,-151.0,0.00022997,7]
[408315355,1773402641584,-3000.0,0.00022999,2]
[408315356,1773402641593,-305597.58501876,0.00023,2]
[408315357,1773402641602,-177.81484471,0.00023,2]
[408315358,1773402641612,-1043.0,0.00023,2]
[408315359,1773402641622,-443.61,0.00023,2]
[408315360,1773402641631,-151.0,0.00023,2]
[408315361,1773402641640,-151.0,0.00023,2]
[408315362,1773402641651,-151.0,0.00023,2]
[408315363,1773402641660,-151.0,0.00023,2]
[408315364,1773402641670,-218.520327,0.00023,2]
[408315365,1773402641679,-218.520327,0.00023,2]
[408315366,1773402641688,-218.520327,0.00023,2]
[408315367,1773402641697,-218.520327,0.00023,2]
[408315368,1773402641707,-288.673177,0.00023,2]
[408315369,1773402641716,-288.673177,0.00023,2]
[408315370,1773402641727,-288.673177,0.00023,2]
[408315371,1773402641736,-288.673177,0.00023,2]
[408315372,1773402641745,-151.0,0.00023,2]
[408315373,1773402641755,-3753.0,0.00023,2]
[408315374,1773402641764,-1906.889,0.00023,2]
[408315375,1773402641773,-151.0,0.00023,2]
[408315376,1773402641784,-166.66,0.00023025,2]
[408315377,1773402641793,-621.0,0.00023207,2]
[408315378,1773402641802,-411.08,0.00023207,2]
[408315379,1773402641813,-7951.96,0.00023368,2]
[408315380,1773402641822,-488.35,0.00023416,2]
[408315381,1773402641832,-1000.0,0.00023521,2]
[408315382,1773402641841,-1000.0,0.00023521,2]
[408315383,1773402641851,-163.18,0.00023521,2]
[408315384,1773402641860,-2000.0,0.00023621,2]
[408315385,1773402641868,-214.7,0.0002389,5]
[408315386,1773402641877,-214.7,0.0002389,5]
[408315387,1773402641886,-214.7,0.0002389,5]
[408315388,1773402641895,-214.7,0.0002389,5]
[408315389,1773402641904,-214.7,0.0002389,5]
[408315390,1773402641913,-214.7,0.0002389,5]
[408315391,1773402641922,-155.0,0.00023999,2]
[408315392,1773402641931,-3600.0,0.00024,2]
[408315393,1773402641939,-1505.18477373,0.00024068,2]
[408315394,1773402641949,-1500.0,0.00024068,2]
[408315395,1773402641959,-3720.54714504,0.0002421,2]
[408315396,1773402641968,-162.78494239,0.00024317,2]
[408315397,1773402641978,-162.78494239,0.00024333,2]
[408315398,1773402641987,-159.18458641,0.00024347,2]
[408315399,1773402641995,-159.18458641,0.00024349,2]
[408315400,1773402642004,-350.90633998,0.00024483,2]
[408315401,1773402642013,-500.0,0.000246,2]
[408315402,1773402642023,-3367.60551912,0.00024606,2]
[408315403,1773402642032,-1514.23929202,0.00024616,2]
[408315404,1773402642042,-1000.0,0.00024658,2]
[408315405,1773402642051,-163.18,0.00024697,2]
[408315406,1773402642060,-531.7077983,0.000249,2]
[408315407,1773402642069,-151.0,0.000249,2]
[408315408,1773402642079,-151.0,0.000249,2]
[408315409,1773402642088,-151.0,0.000249,2]
[408315410,1773402642097,-151.0,0.000249,2]
[408315411,1773402642106,-218.520327,0.000249,2]
[408315412,1773402642115,-218.520327,0.000249,2]
[408315413,1773402642124,-218.520327,0.000249,2]
[408315414,1773402642133,-218.520327,0.000249,2]
[408315415,1773402642142,-288.673177,0.000249,2]
[408315416,1773402642151,-288.673177,0.000249,2]
[408315417,1773402642161,-288.673177,0.000249,2]
[408315418,1773402642170,-288.673177,0.000249,2]
[408315419,1773402642180,-2314.93306343,0.000249,2]
[408315420,1773402642189,-3057.29673798,0.00025,2]
[408315421,1773402642198,-7158.02653838,0.00025,2]
[408315422,1773402642207,-3805.05468213,0.00025,2]
[408315423,1773402642216,-500.0,0.00025,14]
[408315424,1773402642225,-5000.0,0.00025,7]
[408315425,1773402642235,-150.0,0.00025,2]
[408315426,1773402642244,-325.0,0.00025,20]
[408315427,1773402642253,-865.0,0.00025064,3]
[408315428,1773402642262,-845.2,0.000251,14]
[408315429,1773402642272,-535.90597519,0.00025148,2]
[408315430,1773402642282,-3000.0,0.00025389,2]
[408315431,1773402642293,-49758.4864163,0.0002539,2]
[408315432,1773402642302,-178.38,0.00025782,2]
[408315433,1773402642311,-163.18,0.00025873,2]
[408315434,1773402642320,-2000.0,0.00025983,2]
[408315435,1773402642331,-4543.83758541,0.00026,2]
[408315436,1773402642344,-3008.3084068,0.00026,2]
[408315437,1773402642353,-10038.57883211,0.00026,2]
[408315438,1773402642363,-515.7241532,0.000262,2]
[408315439,1773402642373,-515.7241532,0.000262,2]
[408315440,1773402642383,-27605.3823243,0.000264,2]
[408315441,1773402642392,-161.52,0.00026484,2]
[408315442,1773402642401,-152.0,0.00026509,3]
[408315443,1773402642415,-900.69,0.00026559,2]
[408315444,1773402642437,-590.413263,0.00027,2]
[408315445,1773402642454,-596.0,0.00027024,10]
[408315446,1773402642463,-163.18,0.00027049,2]
[408315447,1773402642472,-3707.78,0.00027123,2]
[408315448,1773402642481,-5533.0,0.000272,5]
[408315449,1773402642492,-503.0,0.00027354,10]
[408315450,1773402642502,-151.61200723,0.00027369,2]
[408315451,1773402642511,-1064.53846154,0.0002737,2]
[408315452,1773402642521,-565.38461538,0.0002737,2]
[408315453,1773402642530,-523.84615385,0.0002737,2]
[408315454,1773402642540,-870.92307692,0.0002737,2]